Cogmind - Beta 9.6 @@@ ROGUE MODE // 2020.06.15 @ 14:29:42 Player: Teratos Result: Destroyed by G-34 Mercenary with Small Laser Performance ------------- Evolutions (1) 500 Regions Visited (2) 400 Robots Destroyed (18) 90 Value Destroyed (341) 341 Prototype IDs (0) 0 Alien Tech Used (0) 0 Bonus (0) 0 TOTAL SCORE: 1331 Bonus ------- None Cogmind --------- Core Integrity 0/400 Matter 32/300 Energy 70/100 System Corruption 0% Temperature Cool (6) Movement Core (50) Location -9/Materials Parts ------- > --- POWER (1) -------- (None) > --- PROPULSION (2) --- (None) > --- UTILITY (2) ------ Signal Interpreter > --- WEAPON (4) ------- Katana > --- INVENTORY (4) ---- (None) Peak State ------------ > --- POWER ------------ Light Ion Engine > --- PROPULSION ------- Light Treads Light Treads > --- UTILITY ---------- Small Storage Unit Sensor Array > --- WEAPON ----------- Assault Rifle Assault Rifle > --- INVENTORY -------- (None) [Rating: 7] Favorites ----------- Power Light Ion Engine Engine Light Ion Engine Propulsion Light Treads Treads Light Treads Flight Unit Flight Unit Utility Small Storage Unit Device Sensor Array Storage Small Storage Unit Processor Signal Interpreter Weapon Assault Rifle Ballistic Gun Assault Rifle Slashing Weapon Katana Build | -11 -10 -9 ------- Run | Scr Mat Mat Slots Evolved 2 | . . 2 Power . | . . . Propulsion . | . . . Utility . | . . . Weapon 2 | . . 2 Parts Attached 14 | 6 2 6 Power 1 | 1 . . Engine 1 | 1 . . Core . | . . . Reactor . | . . . Propulsion 5 | 2 . 3 Treads 2 | 2 . . Leg . | . . . Wheel . | . . . Hover . | . . . Flight 3 | . . 3 Utility 3 | 1 2 . Device 1 | . 1 . Storage 1 | 1 . . Processor 1 | . 1 . Hackware . | . . . Protection . | . . . Artifact . | . . . Weapon 5 | 2 . 3 Energy Gun . | . . . Energy Cannon . | . . . Ballistic Gun 4 | 2 . 2 Ballistic Cannon . | . . . Launcher . | . . . Special Weapon . | . . . Impact Weapon . | . . . Slashing Weapon 1 | . . 1 Piercing Weapon . | . . . Special Melee Weapon . | . . . Unidentified Prototypes . | . . . Parts Lost 9 | . . 9 Power 1 | . . 1 Propulsion 3 | . . 3 Utility 1 | . . 1 Weapon 4 | . . 4 Highest Loss Streak 4 | . . 4 Average Slot Usage (%) 77 | . 86 64 Engine 11 | . 14 8 Treads 23 | . 28 17 Flight 1 | . . 2 Device 4 | . 2 8 Storage 7 | . 11 . Processor 5 | . 1 11 Ballistic Gun 22 | . 28 14 Naked Turns . | . . . Heaviest Build 11 | 11 11 8 Greatest Support 40 | 40 40 40 Greatest Overweight (x) 1 | . . 1 Average Overweight (x) . | . . . Largest Inventory Capacity 6 | 6 6 4 Average Capacity 5 | 5 5 4 Most Carried . | . . . Average Carried . | . . . Final Capacity 6 | 6 4 4 Final Carried . | . . . Class Distribution -------------------- 100% | Mutant Dominant Class ---------------- Mutant | -10/Materials Mutant | -9/Materials Resources | -11 -10 -9 ----------- Run | Scr Mat Mat Matter Collected 306 | 152 115 39 Remotely . | . . . Salvage Created 580 | . 338 242 Parts 48 | . 33 15 Haulers Intercepted 1 | . 1 . Recyclers Shooed 2 | . 1 1 Parts Field Recycled . | . . . Retrieved Matter . | . . . Parts Self-Destructed . | . . . Prevented . | . . . Kills | -11 -10 -9 ------- Run | Scr Mat Mat Combat Hostiles Destroyed 13 | . 7 6 Guns 13 | . 7 6 Classes Destroyed 7 | . 5 2 Worker 1 | . 1 . Hauler 1 | . 1 . Recycler 1 | . . 1 Watcher 2 | . 2 . Swarmer 7 | . 3 4 Grunt 5 | . 4 1 Duelist 1 | . . 1 Best Kill Streak 7 | . 7 5 Combat Bots Only 4 | . 3 4 Max Kills in Single Turn 1 | . 1 1 Gunslinging . | . . . Exploded . | . . . Melee . | . . . Uniques/NPCs Destroyed . | . . . Combat | -11 -10 -9 -------- Run | Scr Mat Mat Damage Taken 1339 | . 378 961 Core 499 | . 96 403 Absorbed by Shields . | . . . Core Remaining (%) 80 | 100 61 . Volleys Fired 55 | . 32 23 Largest 2 | . 2 2 Hottest 46 | . 40 46 Shots Fired 93 | . 64 29 Gun 93 | . 64 29 Cannon . | . . . Launcher . | . . . Special . | . . . Kinetic 93 | . 64 29 Thermal . | . . . Explosive . | . . . Electromagnetic . | . . . Robot Hit Streak 19 | . 18 19 Robot Miss Streak 5 | . 5 2 Penetration Max . | . . . Secondary Targets 1 | . 1 . Max Gunslinging Chain 1 | . 1 . Shots Hit Robots 69 | . 45 24 Core Hits 26 | . 17 9 Critical Hits . | . . . Critical Kills . | . . . Critical Parts Destroyed . | . . . Melee Attacks 2 | . . 2 Impact . | . . . Slashing 2 | . . 2 Piercing . | . . . Sneak Attacks . | . . . Combat Hostiles . | . . . Follow-up Attacks . | . . . Damage Inflicted 962 | . 585 377 Guns 896 | . 585 311 Cannons . | . . . Explosions . | . . . Melee 66 | . . 66 Ramming . | . . . Kinetic 896 | . 585 311 Thermal . | . . . Explosive . | . . . Electromagnetic . | . . . Impact . | . . . Slashing 66 | . . 66 Piercing . | . . . Highest Corruption . | . . . Average Corruption . | . . . Corruption Purged . | . . . Overload Shots . | . . . Overflow Damage . | . . . Projectiles . | . . . Explosions . | . . . Melee . | . . . Knockbacks . | . . . Impact . | . . . Kinetic . | . . . Secondary . | . . . Self-Inflicted Damage . | . . . Shots . | . . . Rammed . | . . . Targets Rammed . | . . . Kicked . | . . . Crushed . | . . . Highest Temperature 7 | . 7 2 Average Temperature 3 | . 3 2 Received Heat Transfer 519 | . 180 339 Siege Activations . | . . . Robots Corrupted . | . . . Combat Hostiles . | . . . Parts Fried . | . . . Impact Corruptions . | . . . Robots Melted . | . . . Combat Hostiles . | . . . Parts Melted . | . . . Heat Transferred . | . . . Parts Sabotaged . | . . . Parts Stolen . | . . . Parts Stripped . | . . . Power Chain Reactions . | . . . Missiles Intercepted . | . . . Alert | -11 -10 -9 ------- Run | Scr Mat Mat Peak Influence 215 | . 215 175 Average Influence 114 | . 121 131 Maximum Alert Level 1 | . 1 . Low Security (%) 82 | 100 69 100 Level 1 17 | . 30 . Level 2 . | . . . Level 3 . | . . . Level 4 . | . . . Level 5 . | . . . High Security . | . . . Max Security . | . . . Squads Dispatched 3 | . 2 1 Investigation 2 | . 2 . Extermination . | . . . Reinforcement 1 | . . 1 Assault . | . . . Garrison . | . . . Intercept . | . . . Construction Impeded . | . . . Haulers Reinforced . | . . . Stealth | -11 -10 -9 --------- Run | Scr Mat Mat Distress Signals 2 | . 2 . Communications Jammed . | . . . Distress Signals . | . . . Times Spotted 26 | . 14 12 Peak Tracking Total 6 | . 4 6 Tactical Retreats 1 | . . 1 Traps | -11 -10 -9 ------- Run | Scr Mat Mat Traps Triggered 2 | . 2 . Indirectly . | . . . Trap Hack Attempts . | . . . Triggered . | . . . Disarmed . | . . . Reprogrammed . | . . . Reused . | . . . Traps Extracted . | . . . Installed . | . . . Triggered . | . . . Machines | -11 -10 -9 ---------- Run | Scr Mat Mat Machines Disabled . | . . . Max in Single Turn . | . . . Machines Sabotaged . | . . . Garrisons Compromised . | . . . Overloaded Fab Kills . | . . . Fab Network Shutdowns . | . . . Hacking | -11 -10 -9 --------- Run | Scr Mat Mat Machines Accessed 3 | . 2 1 Terminals 3 | . 2 1 Fabricators . | . . . Repair Stations . | . . . Recycling Units . | . . . Scanalyzers . | . . . Garrison Access . | . . . Total Hacks 5 | . 4 1 Successful 3 | . 3 . Failed 2 | . 1 1 Catastrophic . | . . . Database Lockouts . | . . . Manual . | . . . Terminals 5 | . 4 1 Fabricators . | . . . Repair Stations . | . . . Recycling Units . | . . . Scanalyzers . | . . . Garrison Access . | . . . Terminal Hacks 3 | . 3 . Record 3 | . 3 . Fabricator Hacks . | . . . Repair Station Hacks . | . . . Recycling Unit Hacks . | . . . Scanalyzer . | . . . Garrison Access Hacks . | . . . Unauthorized Hacks . | . . . Terminals . | . . . Fabricators . | . . . Repair Stations . | . . . Recycling Units . | . . . Scanalyzers . | . . . Garrison Access . | . . . Data Cores Recovered . | . . . Used . | . . . Hacking Detections 1 | . 1 . Full Trace Events 1 | . 1 . Feedback Events . | . . . Feedback Blocked . | . . . Robot Schematics Acquired . | . . . Robots Built . | . . . Matter . | . . . Time . | . . . Total Robot Build Rating . | . . . Part Schematics Acquired . | . . . Parts Built . | . . . Matter . | . . . Time . | . . . Total Part Build Rating . | . . . Parts Repaired . | . . . Time . | . . . Parts Recycled . | . . . Recycled Matter . | . . . Retrieved Matter . | . . . Retrieved Components . | . . . Parts Scanalyzed . | . . . Part Schematics Acquired . | . . . Parts Damaged . | . . . Bothacking | -11 -10 -9 ------------ Run | Scr Mat Mat Used RIF Installer . | . . . Robots Hacked . | . . . Non-combat . | . . . Combat . | . . . Robot Hacks Applied . | . . . Relay Couplers Released . | . . . Robots Rewired . | . . . Allies Hacked . | . . . Hacks Repelled . | . . . Allies | -11 -10 -9 -------- Run | Scr Mat Mat Total Allies . | . . . Largest Group . | . . . Highest-Rated Group . | . . . Highest-Rated Ally . | . . . Total Orders . | . . . Ally Attacks . | . . . Total Damage . | . . . Kills . | . . . Allies Corrupted . | . . . Allies Melted . | . . . Intel | -11 -10 -9 ------- Run | Scr Mat Mat Robot Analysis Total . | . . . Derelict Logs Recovered . | . . . Drone Launches . | . . . Drone Recoveries . | . . . Exploration | -11 -10 -9 ------------- Run | Scr Mat Mat Turns Passed 713 | 62 394 257 Spaces Moved 360 | 35 184 141 Core 9 | 2 . 7 Treads 319 | 33 184 102 Legs . | . . . Wheels . | . . . Hover . | . . . Flight 32 | . . 32 Fastest Speed 37 | 50 160 37 Average Speed 146 | 153 160 127 Slowest Speed 160 | 160 160 160 Overloaded Moves . | . . . Propulsion Burnouts . | . . . Robots Hopped . | . . . Cave-ins Triggered . | . . . Exploration Rate (%) 23 | 3 51 15 Regions Visited 2 Branch Regions . Pre-discovered Areas . | . . . Known Exits Taken 1 | . 1 . Unknown Exits Taken 1 | 1 . . Scrap Searched . | . . . Spaces Dug . | . . . Terrain Destroyed . | . . . Melee . | . . . Projectile . | . . . AOE . | . . . Actions | -11 -10 -9 --------- Run | Scr Mat Mat Total 445 | 40 219 186 Wait 13 | . 1 12 Move 358 | 34 183 141 Hop . | . . . Pick Up . | . . . Fast Attach 14 | 6 2 6 Attach . | . . . Detach . | . . . Swap . | . . . Drop 3 | . 1 2 Fire 55 | . 32 23 Melee 2 | . . 2 Ram . | . . . Kick . | . . . Crush . | . . . Escape Stasis . | . . . Rewire . | . . . Trap . | . . . Miscellaneous . | . . . Route ------- -11/Scrapyard -10/Materials -9/Materials History --------- Turn | Location | Event 32 | -11/Scrapyard | Discovered new exit (range 15) 63 | -11/Scrapyard | Entered Materials 311 | -10/Materials | Build established: Mutant 444 | -10/Materials | Discovered new exit (range 9) 455 | -10/Materials | Identified exit to Materials 457 | -10/Materials | Entered another Materials area 457 | -9/Materials | Evolved 2 slots: Weapon x2 687 | -9/Materials | Core integrity fell below 50% 698 | -9/Materials | Lost 4 parts (1p1n1u1w) 711 | -9/Materials | Core integrity fell below 20% 714 | -9/Materials | Destroyed by G-34 Mercenary with Small Laser Last Messages --------------- 00667_ Sensor Array destroyed. 00669_ K-01 Serf collects debris. 00676_ O-16 Technician: "IFF HANDSHAKE FAILED. SECURING TERMINAL." 00678_ K-01 Serf collects debris. 00678_ O-16 Technician uses terminal to summon reinforcements. 00678_ ALERT: Hostiles spotted, dispatching reinforcements to Terminal M001. 00678_ O-16 Technician locks terminal. 00679_ Acquired Hvy. Assault Rifle. 00686_ G-34 Mercenary destroyed. 00686_ K-01 Serf collects debris. 00698_ Flight Unit destroyed. 00703_ Hvy. Assault Rifle destroyed. 00704_ L-31 Rogue destroyed. 00704_ Material Processor disabled. 00707_ Acquired Katana. 00708_ U-05 Engineer lays Concrete. 00708_ Hvy. Assault Rifle destroyed. 00713_ Aluminum Leg severed. 00714_ U-05 Engineer lays Concrete. Map ----- +----------------------------------------------------+ | ?????????????????????????????????????????????????? | | ?????????????????????????????????????????????????? | | ?????????????????????????????????????????????????? | | ?????????????????????????????????????????????????? | | ?????????????????????????????????????????????????? | | ?????????????????????????????????????????????????? | | ?????????????????????????????????????????????????? | | ?????????????????????????????????????????????????? | | ?????????????????????????????????????????????????? | | ?????????????????????????????????????????????????? | | ?????????????????????????????????????????????????? | | ?????????????????????????????????????????????????? | | ?????????????????????????????????????????????????? | | ?????????????????????????????????????????????????? | | ?????????????????????????????????????????????????? | | ?????????????????????????????????????????????????? | | ?????????????????????????????????????????????????? | | ?????????????????????????????????????????????????? | | ?????????????????????????????????????????????????? | | ???????????????????? ???????????????????????????? | | ??? ???????????????"" ??????????????#????????????? | | ?? #????????????""" "???????????? #????????????? | | ?? #?????????????"" "??????????? #????????????? | | ?? ###???????????? ????????? #????????????? | | ?# ??????########+########## ##???????????? | | ?# a g@ #???????????? | | ## #????### =%= #???????????? | | #????????????#" * != ""u +???????????? | | #????????????#" !% T" #???????????? | | #????????????#" ! "" #???????????? | | #????????????#T #???????????? | | #????????????#" o #???????????? | | + ???????????#" #???????????? | | # ??????????#" #???????????? | | #?##?????????## g g "" """ #???????????? | | #??????????#### g """"" """""u #???????????? | | ############T## """"" """"" #???????????? | | """"" """"" #???????????? | | """ """ #???????????? | | ######### ######### #???????????? | | ????????# # # #???????????? | | ????????# # # #???????????? | | ######### # ############## #???????????? | | + + """" #??????????### #???????????? | | ####### """" #??????????# # #???????????? | | #?????# """" #??????????? #???????????? | | #?????# #??????????### #???????????? | | #?????# """" #????????????# #???????????? | | #?????# """" #????????????# #???????????? | | #?????# """" #????????????######???????????? | +----------------------------------------------------+ Best States ------------- Heat Dissipation 28 Energy Generation 10 Energy Capacity 125 Matter Stores 213 Matter Capacity 300 Sight Range 16 Robot Scan Range 10 Terrain Scan Density 10 Evasion (%) 62 Recoil Reduction 2 Item Schematics ----------------- None Robot Schematics ------------------ None Fabricated ------------ Nothing Alien Tech Used ----------------- None Achievements -------------- None Challenges ------------ None Game ------ Seed GravmagNuclearDrive Manual? 0 Play Time 00:05:42 Cumulative 40.0 hours Start 2020.06.15 @ 13:24:34 End 2020.06.15 @ 14:29:42 Sessions 1 Manual Loads 0 Difficulty Rogue Special Mode None Game No. 93 Rogue 93 Adventurer 0 Explorer 0 Win Type - Total 0 Types 0/0/0/0/0/0/0 Lore% 24 Gallery% 27 Achievement% 23 Wizard Run 0 Options --------- ASCII 0 Keyboard 0 Movement Numpad Keybinds 0 Fullscreen 1 Font 18/SmallcapsGlow Map View 76x50 Tactical HUD 1 Map Filters NONE Filters NONE Steam 1 RUN: b0537500-de26-4fb5-aa8a-f88b7761ce4a